bitfinex/quotes_SOLUSD_20230104
["timestamp","ask_amount","ask_price","bid_price","bid_amount"]
[1672875077625,20.0,13.466,13.455,20.0]
[1672875078032,20.0,13.466,13.453,116.287]
[1672875078467,66.04594747,13.466,13.453,116.287]
[1672875079632,66.04594747,13.466,13.455,20.0]
[1672875083918,20.0,13.465,13.455,20.0]
[1672875086351,20.0,13.466,13.455,20.0]
[1672875087294,113.2302,13.475,13.456,20.0]
[1672875087494,20.0,13.474,13.458,20.0]
[1672875087700,20.0,13.474,13.46,20.0]
[1672875087912,20.0,13.474,13.461,20.0]
[1672875088131,20.0,13.474,13.461,154.4021836]
[1672875088348,20.0,13.474,13.462,20.0]
[1672875088657,20.0,13.474,13.463,20.0]
[1672875089078,20.0,13.474,13.462,41.7811836]
[1672875089278,20.0,13.474,13.462,20.0]
[1672875089691,113.2805,13.476,13.462,20.0]
[1672875089907,20.0,13.475,13.462,41.7811836]
[1672875090561,20.0,13.475,13.462,20.0]
[1672875091205,20.0,13.475,13.463,23.3]
[1672875091419,20.0,13.475,13.464,20.0]
[1672875091726,20.0,13.478,13.464,20.0]
[1672875091947,20.0,13.478,13.465,20.0]
[1672875092143,20.0,13.478,13.464,41.7811836]
[1672875092360,20.0,13.478,13.464,43.3]
[1672875095936,198.7546,13.48,13.464,65.0811836]
[1672875096251,143.0746,13.48,13.464,43.3]
[1672875099189,123.0746,13.48,13.465,20.0]
[1672875099806,20.0,13.479,13.465,20.0]
[1672875100016,20.0,13.479,13.464,65.0811836]
[1672875100664,20.0,13.479,13.464,43.3]
[1672875107406,110.6246,13.48,13.464,43.3]
[1672875107607,110.6246,13.48,13.465,20.0]
[1672875108882,110.6246,13.48,13.465,67.90166125]
[1672875109701,61.6484,13.482,13.466,21.7811836]
[1672875109910,20.0,13.481,13.466,21.7811836]
[1672875110115,20.0,13.481,13.465,67.90166125]
[1672875110329,20.0,13.481,13.467,20.0]
[1672875110860,20.0,13.481,13.467,41.7811836]
[1672875111083,61.6484,13.482,13.467,41.7811836]
[1672875111273,55.67,13.484,13.467,92.62951152]
[1672875111484,164.9685,13.488,13.47,12.45]
[1672875111706,20.0,13.487,13.472,20.0]
[1672875112025,117.733,13.489,13.472,70.84832792]
[1672875112223,62.093,13.489,13.473,41.7811836]
[1672875112427,20.0,13.491,13.474,20.0]
[1672875112633,20.0,13.491,13.475,20.0]
[1672875113289,20.0,13.491,13.476,20.0]
[1672875115083,20.0,13.491,13.475,187.90052792]
[1672875115283,20.0,13.491,13.475,137.0522]
[1672875118538,20.0,13.489,13.475,137.0522]
[1672875118751,131.4039,13.489,13.475,137.0522]
[1672875120958,111.4039,13.489,13.475,137.0522]
[1672875123375,20.0,13.488,13.475,137.0522]
[1672875127411,111.4039,13.489,13.475,137.0522]
[1672875128044,20.0,13.488,13.475,137.0522]
[1672875130990,111.4039,13.489,13.475,137.0522]
[1672875131303,111.4039,13.489,13.475,158.8333836]
[1672875131809,111.4039,13.489,13.475,206.67234302]
[1672875132225,111.4039,13.489,13.475,257.52067094]
[1672875132659,6.2,13.49,13.476,20.0]
[1672875132858,173.5438,13.496,13.48,6.26]
[1672875133195,173.5438,13.496,13.481,23.679]
[1672875133506,173.5438,13.496,13.482,20.0]
[1672875133702,173.5438,13.496,13.483,23.679]
[1672875133908,20.0,13.495,13.483,23.679]
[1672875136369,173.5438,13.496,13.483,23.679]
[1672875136563,173.5438,13.496,13.483,45.4601836]
[1672875137198,20.0,13.495,13.483,45.4601836]
[1672875137838,20.0,13.495,13.483,23.679]
[1672875139506,6.25,13.49,13.483,3.679]
[1672875140656,20.0,13.489,13.471,114.6851]
[1672875140867,191.7313,13.489,13.471,114.6851]
[1672875141074,21.7811836,13.488,13.472,67.83895942]
[1672875141298,191.7313,13.489,13.472,67.83895942]
[1672875141299,228.31936076,13.489,13.472,67.83895942]
[1672875141506,191.7313,13.489,13.472,41.7811836]
[1672875141722,136.0913,13.489,13.474,20.0]
[1672875141921,20.0,13.493,13.475,128.5141]
[1672875142139,20.0,13.493,13.476,20.0]
[1672875142348,20.0,13.493,13.476,41.7811836]
[1672875142561,20.0,13.492,13.477,21.7811836]
[1672875142766,20.0,13.492,13.477,32.4811836]
[1672875142986,20.0,13.492,13.477,21.7811836]
[1672875143606,55.62,13.494,13.48,12.5]
[1672875143827,62.2136,13.496,13.48,12.5]
[1672875144148,20.0,13.495,13.481,20.0]
[1672875144363,20.0,13.495,13.481,30.7]
[1672875144558,20.0,13.495,13.482,117.8141]
[1672875144882,20.0,13.495,13.483,20.0]
[1672875146860,62.2136,13.496,13.483,20.0]
[1672875147290,62.2136,13.496,13.483,40.0]
[1672875148457,62.2136,13.496,13.483,20.0]
[1672875148645,20.0,13.495,13.483,20.0]
[1672875149290,62.2136,13.496,13.483,41.7811836]
[1672875150007,119.5527,13.497,13.484,20.0]
[1672875150464,119.5527,13.497,13.485,20.0]
[1672875150757,119.5527,13.497,13.486,20.0]
[1672875151179,119.5527,13.497,13.485,41.7811836]
[1672875152426,75.6,13.501,13.485,41.7811836]
[1672875152636,20.0,13.501,13.487,20.0]
[1672875152858,20.0,13.501,13.488,20.0]
[1672875153280,12.5,13.5,13.484,118.1358]
[1672875153496,75.6,13.499,13.485,20.0]
[1672875153698,20.0,13.498,13.485,20.0]
[1672875154022,20.0,13.496,13.485,20.0]
[1672875154673,20.0,13.496,13.483,20.0]
[1672875154882,20.0,13.496,13.484,20.57]
[1672875155088,20.0,13.496,13.484,42.3511836]
[1672875155501,108.3887,13.497,13.484,42.3511836]
[1672875155716,108.3887,13.497,13.486,20.0]
[1672875156151,108.3887,13.497,13.485,21.7811836]
[1672875156768,20.0,13.499,13.485,21.7811836]
[1672875157213,12.58,13.5,13.485,21.7811836]
[1672875157408,20.0,13.502,13.487,20.0]
[1672875157611,20.0,13.502,13.488,20.0]
[1672875158560,20.0,13.502,13.487,20.0]
[1672875158992,12.5,13.5,13.487,20.0]
[1672875159212,20.0,13.499,13.487,20.0]
[1672875159719,20.0,13.502,13.488,41.7811836]
[1672875160039,20.0,13.502,13.489,21.7811836]
[1672875160243,20.0,13.502,13.489,139.8444836]
[1672875160460,20.0,13.502,13.49,20.0]
[1672875160658,20.0,13.502,13.49,41.7811836]
[1672875160873,20.0,13.502,13.491,21.7811836]
[1672875161085,20.0,13.502,13.492,20.0]
[1672875162146,20.0,13.502,13.49,20.0]
[1672875162337,20.0,13.502,13.491,20.0]
[1672875162547,20.0,13.502,13.492,20.0]
[1672875162969,62.1993,13.503,13.492,20.0]
[1672875163501,55.55,13.513,13.505,62.08193385]
[1672875163711,119.4097,13.513,13.505,62.08193385]
[1672875164040,20.0,13.511,13.505,62.08193385]
[1672875164256,20.0,13.509,13.505,0.00193385]
[1672875164444,20.0,13.507,13.491,20.0]
[1672875164667,55.57,13.506,13.49,41.7811836]
[1672875164981,20.0,13.505,13.492,21.7811836]
[1672875165186,55.58,13.504,13.493,20.0]
[1672875165401,20.0,13.505,13.493,20.0]
[1672875165612,20.0,13.505,13.494,21.7811836]
[1672875166019,20.0,13.505,13.495,20.0]
[1672875166336,20.0,13.505,13.495,41.7811836]
[1672875167507,55.57,13.506,13.495,41.7811836]
[1672875167823,20.0,13.507,13.495,41.7811836]
[1672875168443,55.57,13.506,13.495,41.7811836]
[1672875169274,68.05,13.51,13.496,20.0]
[1672875169597,12.49,13.51,13.497,21.7811836]
[1672875169923,20.0,13.509,13.497,21.7811836]
[1672875171822,55.56,13.509,13.497,21.7811836]
[1672875172022,114.6727,13.51,13.497,21.7811836]
[1672875174757,55.55,13.512,13.5,12.5]
[1672875174953,55.53,13.516,13.501,20.0]
[1672875175167,20.0,13.515,13.502,20.0]
[1672875175381,55.53,13.516,13.502,41.7811836]
[1672875175600,55.53,13.516,13.503,41.7811836]
[1672875175811,55.53,13.516,13.504,20.0]
[1672875176021,75.53,13.516,13.505,20.0]
[1672875176212,75.53,13.516,13.505,41.7811836]
[1672875176544,20.0,13.515,13.506,21.7811836]
[1672875176855,112.5121,13.517,13.506,21.7811836]
[1672875177583,20.0,13.516,13.506,21.7811836]
[1672875177795,75.51,13.521,13.506,21.7811836]
[1672875177999,20.0,13.52,13.506,21.7811836]
[1672875178210,20.0,13.52,13.507,20.0]
[1672875178734,20.0,13.52,13.508,21.7811836]
[1672875179790,55.51,13.522,13.508,21.7811836]
[1672875180117,20.0,13.529,13.509,20.0]
[1672875180118,172.9984,13.527,13.509,20.0]
[1672875180530,172.9984,13.527,13.51,83.46974245]
[1672875180732,172.9984,13.527,13.511,20.0]
[1672875181282,172.9984,13.527,13.511,41.7811836]
[1672875181600,172.9984,13.527,13.512,41.68855885]
[1672875181785,172.9984,13.527,13.513,20.0]
[1672875181989,172.9984,13.527,13.512,21.7811836]
[1672875182201,172.9984,13.527,13.513,20.0]
[1672875182836,20.0,13.524,13.513,20.0]
[1672875183260,20.0,13.524,13.511,20.0]
[1672875183882,20.0,13.522,13.508,20.0]
[1672875185165,20.0,13.522,13.508,41.7811836]
[1672875185567,20.0,13.522,13.509,20.0]
[1672875186725,20.0,13.524,13.509,20.0]
[1672875187142,58.54842078,13.524,13.508,41.7811836]
[1672875187879,20.0,13.524,13.508,41.7811836]
[1672875188089,75.5,13.525,13.509,20.0]
[1672875188090,55.5,13.525,13.509,20.0]
[1672875188295,20.0,13.525,13.509,20.0]
[1672875188528,20.0,13.525,13.51,21.7811836]
[1672875188925,20.0,13.525,13.511,20.0]
[1672875189560,20.0,13.525,13.512,21.7811836]
[1672875189785,20.0,13.525,13.513,20.0]
[1672875190200,20.0,13.525,13.514,21.7811836]
[1672875190611,20.0,13.525,13.515,20.0]
[1672875191876,20.0,13.524,13.515,20.0]
[1672875192096,53.36529911,13.529,13.515,20.0]
[1672875192097,38.51204322,13.539,13.516,41.7811836]
[1672875192297,62.55,13.54,13.516,41.7811836]
[1672875192298,109.2465,13.535,13.516,41.7811836]
[1672875192508,109.2465,13.535,13.518,20.0]
[1672875192726,20.0,13.534,13.519,20.0]
[1672875192930,20.0,13.534,13.519,41.7811836]
[1672875193159,20.0,13.534,13.52,41.7811836]
[1672875193457,20.0,13.534,13.521,41.7811836]
[1672875193869,20.0,13.534,13.522,21.7811836]
[1672875194085,20.0,13.534,13.523,20.0]
[1672875194316,109.2465,13.535,13.522,21.7811836]
[1672875194521,20.0,13.534,13.523,41.7811836]
[1672875194848,20.0,13.534,13.504,20.0]
[1672875194849,62.33,13.53,13.504,20.0]
[1672875195038,12.41,13.52,13.504,20.0]
[1672875195247,12.41,13.52,13.505,20.0]
[1672875195470,20.0,13.528,13.505,20.0]
[1672875195471,20.0,13.526,13.505,20.0]
[1672875195685,173.6195,13.525,13.509,20.0]
[1672875196017,20.0,13.524,13.509,20.0]
[1672875196312,20.0,13.524,13.51,20.0]
[1672875196525,173.6195,13.525,13.51,20.0]
[1672875196932,118.1195,13.525,13.51,20.0]
[1672875197352,118.1195,13.525,13.511,20.0]
[1672875198941,118.1195,13.525,13.513,20.0]
[1672875199767,55.48,13.529,13.513,20.0]
[1672875199988,12.47,13.53,13.515,20.0]
[1672875200816,32.47,13.53,13.515,20.0]
[1672875201026,12.47,13.53,13.515,20.0]
[1672875201237,109.0618,13.531,13.515,20.0]
[1672875204928,55.46,13.533,13.516,20.0]
[1672875205248,20.0,13.534,13.517,40.51]
[1672875205559,20.0,13.534,13.518,40.0]
[1672875205877,20.0,13.534,13.52,20.0]
[1672875206063,20.0,13.534,13.521,20.0]
[1672875207557,164.6182,13.535,13.521,20.0]
[1672875207771,109.1582,13.535,13.521,20.0]
[1672875208181,55.45,13.537,13.521,20.0]
[1672875208409,55.45,13.537,13.523,20.0]
[1672875208596,55.45,13.537,13.524,135.5817]
[1672875208807,174.6237,13.538,13.525,20.0]
[1672875209030,55.42,13.544,13.525,20.0]
[1672875209232,172.9989,13.544,13.527,20.0]
[1672875209444,20.0,13.543,13.527,20.0]
[1672875209653,20.0,13.543,13.528,20.0]
[1672875210282,172.9989,13.544,13.528,41.7811836]
[1672875210487,172.9989,13.544,13.529,20.0]
[1672875210708,172.9989,13.544,13.531,20.0]
[1672875211137,20.0,13.543,13.532,20.0]
[1672875211665,20.0,13.543,13.532,41.7811836]
[1672875212292,20.0,13.543,13.532,20.0]
[1672875212489,55.43,13.542,13.52,57.33]
[1672875212823,20.0,13.541,13.525,41.7811836]
[1672875213135,55.44,13.54,13.526,21.7811836]
[1672875213346,20.0,13.539,13.526,21.7811836]
[1672875214395,20.0,13.537,13.526,21.7811836]
[1672875214602,20.0,13.537,13.521,139.3852]
[1672875214821,20.0,13.537,13.524,137.3628836]
[1672875216067,20.0,13.537,13.525,20.0]
[1672875217120,20.0,13.537,13.526,21.7811836]
[1672875217328,55.44,13.538,13.526,21.7811836]
[1672875217773,75.44,13.539,13.526,21.7811836]
[1672875218190,115.4466,13.54,13.526,21.7811836]
[1672875219128,20.0,13.539,13.526,21.7811836]
[1672875219329,20.0,13.539,13.527,50.00804256]
[1672875219762,20.0,13.539,13.528,21.7811836]
[1672875220507,20.0,13.539,13.528,71.78922616]
[1672875220816,20.0,13.539,13.529,21.7811836]
[1672875221427,115.4466,13.54,13.529,21.7811836]
[1672875222071,171.5604,13.545,13.53,107.31804256]
[1672875222280,116.1504,13.545,13.531,20.0]
[1672875222487,116.1504,13.545,13.531,139.29411258]
[1672875222706,116.1504,13.545,13.533,20.0]
[1672875223123,116.1504,13.545,13.534,41.7811836]
[1672875223546,116.1504,13.545,13.535,21.7811836]
[1672875224385,55.39,13.551,13.535,21.7811836]
[1672875224600,20.0,13.549,13.534,20.0]
[1672875224814,55.4,13.548,13.532,20.0]
[1672875225012,20.0,13.547,13.532,20.0]
[1672875225222,55.41,13.546,13.532,20.0]
[1672875225432,20.0,13.544,13.532,20.0]
[1672875226268,75.42,13.544,13.532,20.0]
[1672875226693,20.0,13.543,13.532,20.0]
[1672875229531,20.0,13.544,13.532,20.0]
[1672875229979,108.3164,13.545,13.533,21.7811836]
[1672875230176,108.3164,13.545,13.534,40.0]
[1672875230496,20.0,13.544,13.535,21.7811836]
[1672875231972,108.3164,13.545,13.535,21.7811836]
[1672875233235,20.0,13.544,13.535,21.7811836]
[1672875233446,55.4,13.548,13.535,21.7811836]
[1672875233632,75.4,13.549,13.535,71.78922616]
[1672875234055,75.4,13.549,13.537,20.0]
[1672875234284,151.78636116,13.564,13.54,186.84]
[1672875234500,236.8262,13.559,13.541,20.0]
[1672875234695,20.0,13.558,13.542,20.0]
[1672875234904,20.0,13.558,13.543,20.0]
[1672875235120,20.0,13.558,13.544,20.0]
[1672875235331,20.0,13.562,13.545,20.0]
[1672875235649,20.0,13.562,13.55,37.31]
[1672875236055,55.35,13.561,13.55,166.15157258]
[1672875236260,20.0,13.56,13.55,166.15157258]
[1672875236897,20.0,13.56,13.55,59.0911836]
[1672875237429,55.35,13.561,13.55,59.0911836]
[1672875237652,55.34,13.563,13.55,112.75335283]
[1672875237959,173.5043,13.565,13.552,20.0]
[1672875238154,20.0,13.564,13.553,20.0]
[1672875238363,20.0,13.564,13.553,41.7811836]
[1672875238596,20.0,13.564,13.554,21.7811836]
[1672875238781,20.0,13.564,13.555,20.0]
[1672875239202,20.0,13.564,13.555,41.7811836]
[1672875239418,20.0,13.564,13.555,20.0]
[1672875239649,118.1743,13.565,13.553,40.0]
[1672875239847,118.1743,13.565,13.555,21.7811836]
[1672875240685,20.0,13.564,13.555,21.7811836]
[1672875241218,75.3,13.572,13.556,73.66216923]
[1672875241527,20.0,13.571,13.558,20.0]
[1672875241735,20.0,13.571,13.557,128.84157258]
[1672875241950,20.0,13.571,13.559,21.7811836]
[1672875242579,92.62,13.57,13.56,53.66216923]
[1672875242787,20.0,13.555,13.538,118.9971]
[1672875242992,75.37,13.555,13.539,128.0914]
[1672875243214,20.0,13.554,13.539,128.0914]
[1672875243428,55.38,13.553,13.539,128.0914]
[1672875243845,20.0,13.552,13.539,108.0914]
[1672875244060,20.0,13.552,13.538,118.9971]
[1672875245197,20.0,13.552,13.539,41.7811836]
[1672875245418,20.0,13.552,13.539,20.0]
[1672875245629,20.0,13.552,13.538,118.9971]
[1672875245840,37.12,13.55,13.534,21.7811836]
[1672875246053,37.12,13.55,13.535,20.0]
[1672875246054,20.0,13.548,13.535,20.0]
[1672875246261,20.0,13.548,13.534,20.0]
[1672875246680,20.0,13.548,13.532,108.8673]
[1672875247740,55.4,13.549,13.533,20.0]
[1672875248077,20.0,13.557,13.533,20.0]
[1672875248078,55.38,13.554,13.534,20.0]
[1672875248270,20.0,13.555,13.535,20.0]
[1672875248458,75.37,13.555,13.535,41.7811836]
[1672875248787,20.0,13.554,13.537,20.0]
[1672875248997,20.0,13.554,13.539,20.0]
[1672875249212,37.12,13.55,13.536,20.0]
[1672875249429,37.12,13.55,13.524,109.734]
[1672875249622,20.0,13.548,13.534,20.0]
[1672875250037,20.0,13.548,13.528,21.7811836]
[1672875250248,20.0,13.546,13.528,21.7811836]
[1672875250457,55.41,13.545,13.528,21.7811836]
[1672875250664,20.0,13.544,13.528,21.7811836]
[1672875251084,20.0,13.544,13.526,108.2809]
[1672875251291,37.12,13.54,13.524,109.734]
[1672875251517,20.0,13.538,13.524,109.734]
[1672875253096,37.12,13.54,13.526,20.0]
[1672875253314,75.41,13.547,13.53,37.31]
[1672875253503,20.0,13.547,13.531,35.06]
[1672875253718,20.0,13.547,13.532,20.0]
[1672875253927,20.0,13.547,13.533,35.06]
[1672875254254,115.2999,13.548,13.533,35.06]
[1672875254487,115.2999,13.548,13.534,41.7811836]
[1672875254792,115.2999,13.548,13.536,20.0]
[1672875255930,115.2999,13.548,13.535,35.06]
[1672875257418,20.0,13.547,13.535,20.0]
[1672875257603,20.0,13.547,13.534,20.0]
[1672875258558,20.0,13.546,13.533,20.0]
[1672875258762,20.0,13.544,13.531,20.0]
[1672875258972,55.42,13.543,13.531,20.0]
[1672875259182,20.0,13.542,13.527,20.0]
[1672875259407,20.0,13.542,13.529,20.0]
[1672875259611,20.0,13.542,13.53,20.0]
[1672875259818,55.42,13.543,13.53,20.0]
[1672875260038,20.0,13.544,13.53,20.0]
[1672875261601,20.0,13.544,13.529,20.0]
[1672875261814,20.0,13.544,13.53,20.0]
[1672875262863,20.0,13.544,13.529,75.48]
[1672875263097,20.0,13.544,13.529,20.0]
[1672875263499,20.0,13.544,13.528,20.0]
[1672875263709,20.0,13.542,13.528,20.0]
[1672875264335,20.0,13.542,13.526,20.0]
[1672875264547,55.43,13.541,13.525,55.5]
[1672875264790,20.0,13.54,13.525,55.5]
[1672875264963,112.9638,13.539,13.525,55.5]
[1672875265173,20.0,13.538,13.524,109.734]
[1672875265818,55.41,13.545,13.525,75.5]
[1672875266038,20.0,13.544,13.526,20.0]
[1672875266225,20.0,13.544,13.527,55.49]
[1672875266435,20.0,13.544,13.529,20.0]
[1672875266646,20.0,13.544,13.531,20.0]
[1672875266880,20.0,13.544,13.531,40.0]
[1672875267097,20.0,13.544,13.532,20.0]
[1672875267599,112.9638,13.545,13.532,20.0]
[1672875267804,112.9638,13.545,13.532,41.7811836]
[1672875268019,112.9638,13.545,13.532,20.0]
[1672875268345,55.4,13.548,13.532,20.0]
[1672875268552,20.0,13.55,13.534,20.0]
[1672875268770,113.4812,13.549,13.535,75.46]
[1672875268965,20.0,13.548,13.536,20.0]
[1672875269387,113.4812,13.549,13.536,20.0]
[1672875269819,55.39,13.551,13.536,20.0]
[1672875270037,188.8512,13.555,13.538,20.0]
[1672875270224,20.0,13.554,13.538,20.0]
[1672875270435,40.0,13.554,13.538,41.7811836]
[1672875270971,20.0,13.554,13.538,41.7811836]
[1672875271802,20.0,13.554,13.54,20.0]
[1672875272007,40.0,13.554,13.54,20.0]
[1672875272453,40.0,13.554,13.538,41.7811836]
[1672875272845,55.37,13.555,13.539,20.0]
[1672875273081,119.73165933,13.556,13.541,20.0]
[1672875273391,119.73165933,13.556,13.543,20.0]
[1672875273582,119.73165933,13.556,13.544,20.0]
[1672875274844,119.73165933,13.556,13.544,41.7811836]
[1672875275056,119.73165933,13.556,13.544,20.0]
[1672875275596,119.73165933,13.556,13.545,20.0]
[1672875275795,119.73165933,13.556,13.546,75.41]
[1672875276006,119.73165933,13.556,13.547,20.0]
[1672875276231,119.73165933,13.556,13.548,20.0]
[1672875276951,119.73165933,13.556,13.549,20.0]
[1672875277164,119.73165933,13.556,13.55,20.0]
[1672875278522,119.73165933,13.556,13.548,20.0]
[1672875278741,119.73165933,13.556,13.549,20.0]
[1672875278948,119.73165933,13.556,13.551,20.0]
[1672875279159,119.73165933,13.556,13.552,20.0]
[1672875281794,119.73165933,13.556,13.536,20.0]
[1672875281795,119.73165933,13.556,13.549,20.0]
[1672875282023,119.73165933,13.556,13.546,20.0]
[1672875282850,119.73165933,13.556,13.547,20.0]
[1672875283054,119.73165933,13.556,13.548,20.0]
[1672875287801,119.73165933,13.556,13.547,20.0]
[1672875292322,119.73165933,13.556,13.548,21.7811836]
[1672875292652,119.73165933,13.556,13.549,20.0]
[1672875293385,119.73165933,13.556,13.55,20.0]
[1672875293592,119.73165933,13.556,13.551,20.0]
[1672875295067,119.73165933,13.556,13.552,21.7811836]
[1672875295465,119.73165933,13.556,13.553,20.0]
[1672875295897,119.73165933,13.556,13.554,21.7811836]
[1672875297487,119.73165933,13.556,13.553,20.0]
[1672875297673,119.73165933,13.556,13.551,41.7811836]
[1672875299794,119.73165933,13.556,13.552,21.7811836]
[1672875300006,119.73165933,13.556,13.553,20.0]
[1672875300641,119.73165933,13.556,13.554,21.7811836]
[1672875302208,119.73165933,13.556,13.553,20.0]
[1672875302523,119.73165933,13.556,13.551,21.7811836]
[1672875302716,119.73165933,13.556,13.552,20.0]
[1672875302925,119.73165933,13.556,13.549,20.0]
[1672875303346,119.73165933,13.556,13.547,21.7811836]
[1672875303347,119.73165933,13.556,13.548,20.0]
[1672875303679,119.73165933,13.556,13.548,41.7811836]
[1672875308602,119.73165933,13.556,13.548,20.0]
[1672875309026,119.73165933,13.556,13.542,113.4735]
[1672875309253,119.73165933,13.556,13.545,21.7811836]
[1672875311129,119.73165933,13.556,13.537,168.0677]
[1672875311337,119.73165933,13.556,13.542,20.0]
[1672875311555,20.0,13.554,13.542,20.0]
[1672875311877,20.0,13.554,13.542,41.7811836]
[1672875312485,20.0,13.554,13.542,20.0]
[1672875312722,20.0,13.552,13.539,40.0]
[1672875312906,20.0,13.552,13.539,20.0]
[1672875313322,20.0,13.552,13.54,41.7811836]
[1672875313540,20.0,13.552,13.541,20.0]
[1672875313781,20.0,13.552,13.541,41.7811836]
[1672875314087,20.0,13.552,13.541,20.0]
[1672875314403,20.0,13.552,13.536,20.0]
[1672875314404,20.0,13.552,13.54,20.0]
[1672875314594,75.39,13.552,13.538,20.0]
[1672875317233,75.39,13.552,13.54,20.0]
[1672875317446,55.39,13.552,13.54,20.0]
[1672875317658,112.6526,13.553,13.541,21.7811836]
[1672875317971,112.6526,13.553,13.542,20.0]
[1672875321542,186.32,13.55,13.532,263.3]
[1672875321760,37.2,13.54,13.525,117.9649]
[1672875321941,37.2,13.54,13.52,37.46]
[1672875321942,37.2,13.54,13.526,30.0]
[1672875322271,20.0,13.538,13.517,119.6538]
[1672875322587,131.74362294,13.537,13.517,119.6538]
[1672875322801,131.74362294,13.537,13.518,21.7811836]
[1672875322997,20.0,13.536,13.519,20.0]
[1672875323326,55.4,13.548,13.52,207.4711836]
[1672875323539,174.6676,13.548,13.52,327.4595836]
[1672875323726,20.0,13.547,13.521,41.7811836]
[1672875323936,20.0,13.545,13.523,20.0]
[1672875324166,20.0,13.545,13.524,20.0]
[1672875324354,20.0,13.545,13.524,41.7811836]
[1672875324563,20.0,13.545,13.525,41.7811836]
[1672875324777,55.42,13.544,13.526,20.0]
[1672875324994,20.0,13.543,13.527,139.9884]
[1672875325216,20.0,13.543,13.528,20.0]
[1672875325418,55.43,13.542,13.528,20.0]
[1672875325630,20.0,13.541,13.528,20.0]
[1672875327022,20.0,13.539,13.526,20.0]
[1672875327203,55.44,13.538,13.521,33.05]
[1672875327404,20.0,13.537,13.523,20.0]
[1672875327618,55.45,13.536,13.524,20.0]
[1672875328568,20.0,13.537,13.524,20.0]
[1672875328782,20.0,13.537,13.523,20.0]
[1672875329829,55.45,13.536,13.523,20.0]
[1672875330670,166.4535,13.536,13.524,20.0]
[1672875331334,20.0,13.535,13.524,20.0]
[1672875331745,20.0,13.535,13.522,20.0]
[1672875331746,20.0,13.535,13.523,20.0]
[1672875333643,166.4535,13.536,13.523,20.0]
[1672875333829,111.0035,13.536,13.523,20.0]
[1672875335741,20.0,13.535,13.523,20.0]
[1672875335948,20.0,13.534,13.523,20.0]
[1672875336157,20.0,13.532,13.52,20.0]
[1672875336352,20.0,13.532,13.521,20.0]
[1672875336778,75.46,13.534,13.521,41.7811836]
[1672875340050,75.46,13.534,13.521,41.7811836]
[1672875340902,55.46,13.534,13.521,41.7811836]
[1672875341089,20.0,13.534,13.521,41.7811836]
[1672875342880,55.46,13.535,13.521,41.7811836]